bitfinex/quotes_BTCUSD_20250303
["timestamp","ask_amount","ask_price","bid_price","bid_amount"]
[1741003406500,0.00239837,93356.0,93355.0,0.474676]
[1741003406713,0.00239837,93356.0,93355.0,0.467676]
[1741003407283,0.00239837,93356.0,93355.0,0.474676]
[1741003407662,0.00239837,93356.0,93355.0,0.467676]
[1741003407854,0.00239837,93356.0,93355.0,0.481676]
[1741003408213,0.00239837,93356.0,93355.0,0.474676]
[1741003409286,0.00239837,93356.0,93355.0,0.174676]
[1741003409512,0.00256837,93356.0,93355.0,0.181676]
[1741003410708,0.00256837,93356.0,93355.0,0.021]
[1741003411039,0.00256837,93356.0,93355.0,0.181676]
[1741003420729,0.00256837,93356.0,93355.0,0.021]
[1741003420951,0.16324337,93356.0,93355.0,0.021]
[1741003421153,0.00256837,93356.0,93355.0,0.181676]
[1741003421852,0.00256837,93356.0,93355.0,0.50519665]
[1741003422023,0.00256837,93356.0,93355.0,0.50369719]
[1741003422224,0.00256837,93356.0,93355.0,0.48969719]
[1741003423101,0.002,93366.0,93355.0,0.49669719]
[1741003423305,7.2e-07,93367.0,93366.0,0.538658]
[1741003423505,4.3e-07,93392.0,93379.0,0.3]
[1741003423618,0.00145054,93400.0,93397.0,0.160604]
[1741003423819,0.00211953,93398.0,93397.0,0.160604]
[1741003424529,0.00211953,93398.0,93397.0,0.460604]
[1741003424858,0.002,93408.0,93405.0,0.3]
[1741003425056,0.002,93408.0,93407.0,0.55212785]
[1741003425057,2.2e-07,93408.0,93407.0,0.55212785]
[1741003425259,2.2e-07,93408.0,93407.0,0.537587]
[1741003425474,2.2e-07,93408.0,93407.0,0.160587]
[1741003427193,2.2e-07,93408.0,93405.0,0.007]
[1741003427819,2.2e-07,93408.0,93407.0,0.160587]
[1741003428417,2.2e-07,93408.0,93374.0,0.09521547]
[1741003428624,2.2e-07,93408.0,93382.0,0.04961953]
[1741003428788,2.2e-07,93408.0,93407.0,0.167587]
[1741003428988,2.2e-07,93408.0,93407.0,0.160587]
[1741003429230,2.2e-07,93408.0,93407.0,0.460587]
[1741003429675,0.00013052,93417.0,93416.0,0.160572]
[1741003429879,0.00013052,93417.0,93416.0,0.460572]
[1741003431368,0.00013052,93417.0,93416.0,0.467572]
[1741003431503,0.00051129,93429.0,93416.0,0.007]
[1741003431701,0.00063071,93429.0,93428.0,0.160551]
[1741003432327,7.1e-07,93429.0,93428.0,0.46204914]
[1741003432568,7.1e-07,93429.0,93428.0,0.460551]
[1741003433964,7.1e-07,93429.0,93428.0,0.53109185]
[1741003434165,0.0021703,93450.0,93449.0,0.460515]
[1741003434364,0.00256827,93450.0,93449.0,0.460515]
[1741003435211,0.00256827,93450.0,93449.0,0.3]
[1741003435366,0.00256827,93450.0,93449.0,0.460515]
[1741003435691,0.00256827,93450.0,93449.0,0.47801893]
[1741003436459,0.00256827,93450.0,93449.0,0.54178243]
[1741003436660,0.00256827,93450.0,93449.0,0.60252328]
[1741003436990,0.00256827,93450.0,93449.0,0.59300766]
[1741003437374,0.00256827,93450.0,93449.0,0.60000766]
[1741003437719,0.00256827,93450.0,93449.0,0.56982379]
[1741003437897,0.00256827,93450.0,93449.0,0.59768554]
[1741003438099,0.00256827,93450.0,93449.0,0.56662153]
[1741003438325,0.00256827,93450.0,93449.0,0.53875978]
[1741003438499,0.00256827,93450.0,93449.0,0.61153893]
[1741003439108,0.00256827,93450.0,93449.0,0.62607978]
[1741003441661,0.00256827,93450.0,93449.0,1.71276463]
[1741003442082,0.00046867,93465.0,93464.0,0.460489]
[1741003442283,0.00058799,93465.0,93464.0,0.160489]
[1741003443390,0.00058799,93465.0,93449.0,0.01050393]
[1741003443592,0.00058799,93465.0,93441.0,0.214037]
[1741003443848,0.00058799,93465.0,93464.0,0.007]
[1741003444058,0.00062799,93465.0,93464.0,0.167489]
[1741003444752,0.00062799,93465.0,93464.0,0.160489]
[1741003445094,0.00062799,93465.0,93464.0,0.007]
[1741003445290,0.00062799,93465.0,93428.0,0.02108742]
[1741003445591,0.00062799,93465.0,93448.0,0.160515]
[1741003445703,0.00062799,93465.0,93436.0,0.09816778]
[1741003445903,0.00062799,93465.0,93440.0,0.3]
[1741003446113,0.160497,93460.0,93450.0,0.160513]
[1741003446360,0.160492,93463.0,93453.0,0.160507]
[1741003446538,0.160497,93460.0,93437.0,0.160535]
[1741003446741,0.00062799,93465.0,93464.0,0.007]
[1741003446943,0.160497,93460.0,93438.0,0.214045]
[1741003447159,0.160498,93460.0,93439.0,0.214043]
[1741003447360,0.160511,93451.0,93450.0,0.007]
[1741003447569,0.160511,93451.0,93433.0,0.214055]
[1741003447846,0.0818,93464.0,93427.0,0.24977547]
[1741003448060,0.01052071,93462.0,93427.0,0.09521547]
[1741003448231,0.00079789,93465.0,93427.0,0.09521547]
[1741003448500,0.214005,93456.0,93411.0,0.00149846]
[1741003448648,0.01678891,93456.0,93450.0,0.007]
[1741003449015,0.01678891,93456.0,93455.0,0.160505]
[1741003449634,0.01678891,93456.0,93453.0,0.214009]
[1741003449635,0.00079789,93465.0,93464.0,0.160489]
[1741003450908,0.00079789,93465.0,93464.0,0.460489]
[1741003451198,0.00079789,93465.0,93464.0,0.467489]
[1741003451541,0.00079789,93465.0,93464.0,0.460489]
[1741003451747,0.00079789,93465.0,93464.0,0.467489]
[1741003452163,0.00079789,93465.0,93464.0,0.460489]
[1741003453480,0.00079789,93465.0,93464.0,0.467489]
[1741003453906,0.00079789,93465.0,93464.0,0.460489]
[1741003454325,0.00079789,93465.0,93464.0,0.467489]
[1741003457312,0.00079789,93465.0,93464.0,0.007]
[1741003457511,0.00079789,93465.0,93464.0,0.167489]
[1741003457764,0.00079789,93465.0,93464.0,0.007]
[1741003458176,0.00079789,93465.0,93464.0,0.167489]
[1741003458663,0.00079789,93465.0,93464.0,0.160489]
[1741003460115,0.00079789,93465.0,93464.0,0.167489]
[1741003460759,0.00079789,93465.0,93464.0,0.17034328]
[1741003461211,0.00079789,93465.0,93464.0,0.17734328]
[1741003461444,0.00079789,93465.0,93464.0,0.00985428]
[1741003461684,0.00079789,93465.0,93464.0,0.17034328]
[1741003461898,0.00079789,93465.0,93464.0,0.01685428]
[1741003462876,0.00079789,93465.0,93464.0,0.17734328]
[1741003463056,0.00079789,93465.0,93464.0,0.167489]
[1741003463258,0.00079789,93465.0,93464.0,0.007]
[1741003464783,0.00079789,93465.0,93449.0,0.0003396]
[1741003464784,0.0757,93464.0,93449.0,0.0003396]
[1741003465136,0.160491,93463.0,93449.0,0.0003396]
[1741003465564,0.0757,93464.0,93449.0,0.0003396]
[1741003466142,0.160499,93459.0,93449.0,0.0003396]
[1741003466364,0.213992,93462.0,93449.0,0.0003396]
[1741003466566,0.0757,93464.0,93449.0,0.0003396]
[1741003466769,0.0767,93464.0,93449.0,0.0073396]
[1741003466972,0.0757,93464.0,93449.0,0.0003396]
[1741003467172,0.160494,93462.0,93449.0,0.0003396]
[1741003467382,0.160513,93450.0,93449.0,0.0073396]
[1741003467599,0.001,93459.0,93449.0,0.0073396]
[1741003467768,0.0757,93464.0,93449.0,0.0003396]
[1741003467966,0.213995,93460.0,93449.0,0.0003396]
[1741003468153,0.0757,93464.0,93449.0,0.0053396]
[1741003468364,0.213988,93463.0,93449.0,0.0003396]
[1741003468559,0.160491,93463.0,93449.0,0.0003396]
[1741003468846,0.0757,93464.0,93449.0,0.0003396]
[1741003469369,0.3241,93463.0,93449.0,0.0003396]
[1741003469605,0.160513,93450.0,93449.0,0.0003396]
[1741003469809,0.21399,93462.0,93449.0,0.0003396]
[1741003470011,0.160513,93450.0,93449.0,0.0003396]
[1741003470567,0.160513,93450.0,93449.0,0.0073396]
[1741003470765,0.160513,93450.0,93449.0,0.0003396]
[1741003471207,0.17730045,93450.0,93449.0,0.0063396]
[1741003471407,0.17730045,93450.0,93449.0,0.0003396]
[1741003471648,0.17830045,93450.0,93449.0,0.0073396]
[1741003471851,0.50240045,93450.0,93449.0,0.0073396]
[1741003472064,0.57760045,93450.0,93449.0,0.0073396]
[1741003472470,0.62730045,93450.0,93449.0,0.0073396]
[1741003472849,0.160551,93428.0,93427.0,0.00986809]
[1741003473050,0.646891,93428.0,93427.0,0.00986809]
[1741003473262,0.160554,93426.0,93425.0,0.09521547]
[1741003473463,0.484654,93426.0,93425.0,0.09521547]
[1741003473667,0.160565,93420.0,93419.0,0.09521547]
[1741003473862,0.484665,93420.0,93419.0,0.09521547]
[1741003474089,0.49560485,93420.0,93419.0,0.09561344]
[1741003474249,0.57800485,93420.0,93419.0,0.09561344]
[1741003474953,0.68692129,93420.0,93419.0,0.09561344]
[1741003475159,0.68692129,93420.0,93419.0,0.09761344]
[1741003475355,0.57800485,93420.0,93419.0,0.04761344]
[1741003475671,0.57800485,93420.0,93419.0,0.02346273]
[1741003475879,0.238685,93408.0,93407.0,0.0003398]
[1741003476075,0.562785,93408.0,93407.0,2.2e-07]
[1741003476280,0.562785,93408.0,93373.0,0.00201]
[1741003476281,0.160644,93374.0,93373.0,0.00101]
[1741003476502,0.160644,93374.0,93373.0,0.00112953]
[1741003477793,0.3241,93377.0,93373.0,0.00112953]
[1741003477991,0.3241,93391.0,93373.0,0.00112953]
[1741003478434,0.16062,93388.0,93373.0,0.00112953]
[1741003478639,0.3241,93392.0,93373.0,0.00112953]
[1741003478795,0.01679924,93387.0,93373.0,0.00112953]
[1741003479000,0.214167,93385.0,93373.0,0.00112953]
[1741003479200,0.3241,93386.0,93373.0,0.00112953]
[1741003479429,0.34089924,93387.0,93373.0,0.00112953]
[1741003479606,0.3241,93387.0,93373.0,0.00112953]
[1741003479836,0.3241,93387.0,93375.0,0.160641]
[1741003480045,0.3241,93387.0,93373.0,0.00112953]
[1741003480278,0.160623,93386.0,93373.0,0.00112953]
[1741003480418,0.3241,93387.0,93373.0,0.00112953]
[1741003481626,0.01680085,93393.0,93391.0,0.160614]
[1741003481826,0.01680085,93393.0,93388.0,0.214158]
[1741003482043,0.01680085,93393.0,93386.0,0.0492]
[1741003482368,0.01680085,93393.0,93373.0,0.05032953]
[1741003482544,0.160615,93391.0,93373.0,0.05032953]
[1741003482720,0.01680085,93393.0,93381.0,0.160632]
[1741003482927,0.01680085,93393.0,93392.0,0.160613]
[1741003483124,0.3241,93423.0,93414.0,0.160575]
[1741003483346,0.01679558,93419.0,93414.0,0.160575]
[1741003483522,0.01679558,93419.0,93397.0,0.0488]
[1741003483725,0.160577,93413.0,93397.0,0.0488]
[1741003484039,0.3241,93412.0,93381.0,0.0593137]
[1741003484223,0.087,93411.0,93381.0,0.0488]
[1741003484407,0.160602,93399.0,93381.0,0.04891953]
[1741003484605,0.01679679,93404.0,93381.0,0.04891953]
[1741003484898,0.001,93393.0,93386.0,0.001]
[1741003485060,0.3241,93403.0,93381.0,0.04891953]
[1741003485258,0.3241,93403.0,93400.0,0.160599]
[1741003485611,0.3241,93403.0,93402.0,0.160596]
[1741003485740,0.3241,93403.0,93400.0,0.160599]
[1741003485948,0.3241,93403.0,93397.0,0.214137]
[1741003486171,0.3241,93403.0,93398.0,0.160602]
[1741003486408,0.3241,93403.0,93381.0,0.04891953]
[1741003486409,0.3241,93403.0,93402.0,0.205796]
[1741003486608,0.3241,93434.0,93420.0,0.160563]
[1741003486947,0.3241,93434.0,93402.0,0.0452]
[1741003487132,0.3241,93434.0,93404.0,0.214123]
[1741003487335,0.3241,93434.0,93402.0,0.0452]
[1741003487796,0.3241,93434.0,93413.0,0.160577]
[1741003488034,0.32421937,93434.0,93402.0,0.0452]
[1741003488511,0.32421937,93434.0,93402.0,0.205796]
[1741003488512,0.001,93403.0,93402.0,0.205796]
[1741003488677,0.32421937,93434.0,93402.0,0.0452]
[1741003488878,0.3241,93434.0,93402.0,0.0452]
[1741003489017,0.3241,93434.0,93433.0,0.160542]
[1741003489229,4e-05,93434.0,93402.0,0.0452]
[1741003489421,0.32414,93434.0,93402.0,0.0452]
[1741003489622,0.001,93403.0,93402.0,0.001]
[1741003490059,0.3241,93425.0,93387.0,0.0491]
[1741003490854,0.3241,93425.0,93412.0,0.160578]
[1741003491052,0.01679377,93416.0,93389.0,0.00149886]
[1741003491281,0.01679377,93416.0,93387.0,0.04921953]
[1741003492093,0.01679377,93416.0,93415.0,0.160573]
[1741003492750,0.01679377,93416.0,93388.0,0.02556774]
[1741003492951,0.01683377,93416.0,93411.0,0.16058]
[1741003493130,0.01683377,93416.0,93388.0,0.02556774]
[1741003493330,0.34093377,93416.0,93388.0,0.02556774]
[1741003493550,0.55503077,93416.0,93388.0,0.02556774]
[1741003493809,0.160577,93413.0,93412.0,0.002]
[1741003494391,0.34093377,93416.0,93412.0,0.002]
[1741003494771,0.34093377,93416.0,93415.0,0.160573]
[1741003495170,0.32414,93416.0,93415.0,0.206073]
[1741003495391,0.00104,93416.0,93415.0,0.206073]
[1741003495717,4e-05,93416.0,93415.0,0.206073]
[1741003496172,0.00104,93416.0,93415.0,0.208073]
[1741003496388,4e-05,93416.0,93415.0,0.506073]
[1741003496589,0.00111078,93449.0,93433.0,0.460542]
[1741003496792,0.0001698,93450.0,93449.0,0.160515]
[1741003496988,0.0001698,93450.0,93449.0,0.207715]
[1741003497591,0.0001698,93450.0,93449.0,0.20921295]
[1741003497792,0.00111078,93483.0,93464.0,0.160489]
[1741003497992,0.00107662,93465.0,93464.0,0.160489]
[1741003498414,0.00107662,93465.0,93451.0,0.3271]
[1741003498415,0.01786072,93465.0,93451.0,0.3271]
[1741003498915,0.01786072,93465.0,93464.0,0.02454416]
[1741003499560,0.01886072,93465.0,93464.0,0.02754416]
[1741003499784,0.01786072,93465.0,93464.0,0.02454416]
[1741003500002,0.214034,93443.0,93432.0,0.0481]
[1741003500216,0.17934772,93465.0,93464.0,0.003]
[1741003500449,0.32617662,93465.0,93432.0,0.0481]
[1741003500658,0.160501,93457.0,93448.0,0.160516]
[1741003500826,0.34196275,93465.0,93432.0,0.0481]
[1741003501674,0.34200275,93465.0,93434.0,0.3]
[1741003502207,0.34200275,93465.0,93449.0,0.160514]
[1741003502387,0.34300275,93465.0,93464.0,0.005]
[1741003502570,0.34300275,93465.0,93434.0,0.3]
[1741003502571,0.34300275,93465.0,93459.0,0.160496]
[1741003502782,0.34300275,93465.0,93463.0,0.160491]
[1741003502980,0.01890275,93465.0,93434.0,0.001]
[1741003503251,0.01890275,93465.0,93438.0,0.3]
[1741003503419,0.23188575,93465.0,93450.0,0.160513]
[1741003503615,0.1605,93458.0,93450.0,0.160513]
[1741003503827,0.3241,93458.0,93414.0,0.09208]
[1741003504038,0.3241,93458.0,93438.0,0.160534]
[1741003504237,0.3241,93458.0,93426.0,0.214072]
[1741003504238,0.3241,93458.0,93427.0,0.3]
[1741003504540,0.01678761,93454.0,93434.0,0.004]
[1741003504734,0.01678761,93454.0,93453.0,0.160508]
[1741003504934,0.01678761,93454.0,93450.0,0.160513]
[1741003505135,0.01678761,93454.0,93434.0,0.004]
[1741003505472,0.214011,93453.0,93434.0,0.004]
[1741003505659,0.3241,93453.0,93417.0,0.0495]
[1741003506036,0.160542,93433.0,93432.0,0.005]
[1741003506330,0.0777,93461.0,93408.0,0.160584]
[1741003506331,0.160569,93418.0,93408.0,0.160584]
[1741003506555,0.160561,93423.0,93413.0,0.160576]
[1741003506755,0.160539,93435.0,93434.0,0.005]
[1741003506954,0.160539,93435.0,93401.0,0.0495]
[1741003506955,0.3241,93435.0,93401.0,0.0495]
[1741003507155,0.00011937,93435.0,93401.0,0.0495]
[1741003507522,0.214054,93434.0,93405.0,0.16059]
[1741003507718,0.21408,93423.0,93408.0,0.214112]
[1741003507924,0.00011937,93435.0,93401.0,0.0495]
[1741003508123,0.160596,93402.0,93401.0,0.0495]
[1741003508379,0.3241,93421.0,93382.0,0.0457]
[1741003508587,0.160621,93387.0,93382.0,0.0457]
[1741003508829,0.160621,93387.0,93373.0,0.0013496]
[1741003509222,0.01679521,93402.0,93373.0,0.0013496]
[1741003509514,0.160621,93387.0,93386.0,0.00046053]
[1741003509966,0.161621,93387.0,93386.0,0.00346053]
[1741003510168,0.17741884,93387.0,93386.0,0.00046053]
[1741003510382,0.17741884,93387.0,93386.0,0.00146053]
[1741003510716,0.17741884,93387.0,93386.0,0.00046053]
[1741003510935,0.17745884,93387.0,93386.0,0.00346053]
[1741003512891,0.50155884,93387.0,93386.0,0.00346053]
[1741003513308,0.50155884,93387.0,93386.0,0.00046053]
[1741003513664,0.59839969,93387.0,93386.0,0.00246053]
[1741003513876,0.59839969,93387.0,93386.0,0.00046053]
[1741003514541,0.60239969,93387.0,93386.0,0.00046053]
[1741003514957,0.70761924,93387.0,93386.0,0.00046053]
[1741003515110,0.9908214,93387.0,93386.0,5.3e-07]
[1741003515495,0.160644,93374.0,93373.0,0.0013496]
[1741003515694,0.59296413,93374.0,93373.0,0.0013496]
[1741003515895,0.59296413,93374.0,93362.0,6e-07]
[1741003515896,0.160663,93363.0,93362.0,6e-07]
[1741003516120,0.484763,93363.0,93362.0,6e-07]
[1741003516946,0.50660034,93363.0,93362.0,6e-07]
[1741003517152,0.51060034,93363.0,93362.0,6e-07]
[1741003517809,0.51460034,93363.0,93362.0,6e-07]
[1741003518234,0.50660034,93363.0,93362.0,6e-07]
[1741003518581,0.52114119,93363.0,93362.0,6e-07]
[1741003518782,1.00815763,93363.0,93362.0,6e-07]
[1741003519026,0.89924119,93363.0,93362.0,6e-07]
[1741003519598,0.90224119,93363.0,93362.0,6e-07]
[1741003520026,0.90224119,93363.0,93362.0,0.0003414]
[1741003520199,0.90524119,93363.0,93362.0,0.0003414]
[1741003521932,0.51260034,93363.0,93362.0,0.0003414]
[1741003522162,0.584483,93363.0,93362.0,0.0003414]
[1741003522762,0.578483,93363.0,93362.0,0.0003414]
[1741003524813,0.878483,93363.0,93362.0,0.0003414]
[1741003525895,0.89302385,93363.0,93362.0,0.0003414]
[1741003526499,0.89302385,93363.0,93362.0,4e-07]
[1741003529099,0.90983083,93363.0,93362.0,4e-07]
[1741003529313,0.81611083,93363.0,93362.0,4e-07]
[1741003529493,0.97726472,93363.0,93362.0,4e-07]
[1741003530489,0.90899083,93363.0,93362.0,4e-07]
[1741003530711,0.50156998,93363.0,93362.0,4e-07]
[1741003531364,0.34107758,93363.0,93352.0,0.0013504]
[1741003531742,0.16068,93353.0,93352.0,0.0013504]
[1741003532145,0.3242706,93363.0,93352.0,0.0013504]
[1741003532343,0.02209937,93353.0,93352.0,0.0013504]
[1741003532620,0.1774852,93353.0,93352.0,0.0013504]
[1741003532796,0.50685537,93353.0,93352.0,0.0013504]
[1741003533697,0.61577181,93353.0,93352.0,0.0013504]
[1741003533910,0.50685537,93353.0,93352.0,0.0013504]
[1741003535488,0.52139622,93353.0,93352.0,0.0013504]
[1741003535692,0.52139622,93353.0,93327.0,0.00034]
[1741003535693,0.160716,93332.0,93327.0,0.00034]
[1741003535890,0.484816,93332.0,93327.0,0.00034]
[1741003536098,0.49004035,93332.0,93327.0,0.00034]
[1741003536975,0.49004035,93332.0,93331.0,0.00280837]
[1741003537178,0.50100454,93332.0,93331.0,0.00280837]
[1741003537784,0.32932435,93332.0,93331.0,0.00280837]
[1741003537978,0.49004035,93332.0,93331.0,0.00280837]
[1741003539975,0.59895679,93332.0,93331.0,0.00280837]
[1741003540150,0.49004035,93332.0,93331.0,0.00280837]
[1741003540342,0.50684999,93332.0,93331.0,0.00280837]
[1741003543261,0.50684999,93332.0,93331.0,0.00314957]
[1741003545851,0.49004035,93332.0,93331.0,0.00314957]
[1741003548418,0.00522435,93332.0,93331.0,0.00314957]
[1741003548607,0.3241,93347.0,93331.0,0.05174957]
[1741003548768,0.16691057,93332.0,93331.0,0.05174957]
[1741003548954,0.160716,93332.0,93331.0,0.05174957]
[1741003549150,0.00774251,93332.0,93331.0,0.05174957]
[1741003549393,0.160711,93335.0,93331.0,0.05174957]
[1741003549597,0.0076841,93332.0,93331.0,0.05174957]
[1741003549800,0.3241,93347.0,93331.0,0.05174957]
[1741003550160,0.160681,93353.0,93332.0,0.0815]
[1741003550424,0.01680707,93344.0,93341.0,0.1607]
[1741003550629,0.01680707,93344.0,93332.0,0.0815]
[1741003550846,0.160699,93343.0,93332.0,0.0815]
[1741003550998,0.01680707,93344.0,93332.0,0.0815]
[1741003551198,0.01680707,93344.0,93331.0,0.05174957]
[1741003551418,0.160716,93332.0,93331.0,0.05174957]
[1741003552039,0.1775246,93332.0,93331.0,0.05174957]
[1741003552202,0.0168086,93332.0,93331.0,0.05174957]
[1741003552408,0.1775246,93332.0,93331.0,0.05174957]
[1741003553045,0.0168086,93332.0,93331.0,0.05174957]
[1741003553964,0.1775246,93332.0,93331.0,0.05174957]
[1741003555069,0.1775246,93332.0,93331.0,0.00314957]
[1741003555693,0.160716,93332.0,93331.0,0.00314957]
[1741003556762,0.484816,93332.0,93331.0,0.00314957]
[1741003558108,0.574136,93332.0,93331.0,0.00314957]
[1741003558479,0.58867685,93332.0,93331.0,0.00314957]
[1741003559022,0.574136,93332.0,93331.0,0.00314957]
[1741003559224,0.58185123,93332.0,93331.0,0.00314957]
[1741003559885,0.65919982,93332.0,93331.0,0.00314957]
[1741003560280,0.69055139,93332.0,93331.0,0.00314957]
[1741003560937,0.6132028,93332.0,93331.0,0.00314957]
[1741003561893,0.160747,93314.0,93313.0,0.0003402]
[1741003562097,0.484847,93314.0,93313.0,0.00045976]
[1741003562297,0.17529285,93311.0,93310.0,0.00011956]
[1741003562517,0.49939285,93311.0,93310.0,0.00011956]
[1741003562719,0.50706502,93311.0,93310.0,0.00011956]
[1741003563117,0.52825516,93311.0,93310.0,0.00011956]
[1741003564635,0.60155431,93311.0,93310.0,0.00011956]
[1741003566539,0.60155431,93311.0,93310.0,0.20617356]
[1741003566540,0.33177217,93311.0,93310.0,0.20617356]
[1741003567040,0.00767217,93311.0,93310.0,0.20651476]
[1741003567283,0.3241,93326.0,93325.0,0.160728]
[1741003567469,0.32421925,93326.0,93310.0,0.04576076]
[1741003567638,0.33191979,93326.0,93310.0,0.04576076]
[1741003567851,0.214322,93318.0,93310.0,0.04576076]
[1741003568080,0.33191979,93326.0,93310.0,0.04576076]
[1741003568284,0.00767485,93317.0,93316.0,0.160744]
[1741003568483,0.32421925,93326.0,93325.0,0.160728]
[1741003568799,0.160733,93323.0,93310.0,0.04576076]
[1741003568941,0.00771497,93322.0,93313.0,0.160748]
[1741003569146,0.00771497,93322.0,93310.0,0.04576076]
[1741003569401,0.32421925,93326.0,93325.0,0.160728]
[1741003569567,0.33052097,93326.0,93325.0,0.160728]
[1741003569767,0.33052097,93326.0,93319.0,0.214317]
[1741003569977,0.33052097,93326.0,93325.0,0.160728]
[1741003570375,0.34732982,93326.0,93325.0,0.160728]
[1741003570577,0.34732982,93326.0,93320.0,0.160736]
[1741003570801,0.34732982,93326.0,93310.0,0.20651476]
[1741003570997,0.160728,93325.0,93310.0,0.04576076]
[1741003571237,0.00631768,93324.0,93310.0,0.04576076]
[1741003572044,0.00631768,93324.0,93323.0,0.160732]
[1741003572253,0.3410281,93326.0,93310.0,0.04576076]
[1741003572416,0.00631371,93325.0,93321.0,0.160733]
[1741003572619,0.3241,93324.0,93311.0,0.214337]
[1741003572933,0.3241,93324.0,93322.0,0.160733]
[1741003572934,0.00631173,93323.0,93322.0,0.160733]
[1741003573801,0.3241,93324.0,93323.0,0.160732]
[1741003574131,0.0169281,93326.0,93321.0,0.214312]
[1741003574334,0.0169281,93326.0,93324.0,0.160729]
[1741003574531,0.0169281,93326.0,93315.0,0.214326]
[1741003574739,0.0169281,93326.0,93325.0,0.160728]
[1741003575373,0.0169281,93326.0,93325.0,0.591028]
[1741003575538,0.3241,93356.0,93340.0,0.160702]
[1741003576006,0.3241,93356.0,93340.0,0.509002]
[1741003576404,0.3241,93356.0,93340.0,0.588302]
[1741003577007,0.0001706,93363.0,93340.0,0.588302]
[1741003577195,0.0001706,93363.0,93361.0,0.292166]
[1741003577397,0.0059693,93362.0,93361.0,0.592166]
[1741003577603,0.00056897,93362.0,93361.0,0.592166]
[1741003578449,0.09599098,93368.0,93367.0,0.510156]
[1741003578651,0.09599098,93368.0,93367.0,0.52469685]
[1741003578855,0.09611044,93368.0,93367.0,0.54108307]
[1741003578978,0.09611044,93368.0,93367.0,0.510156]
[1741003579619,0.09611044,93368.0,93367.0,0.0495]
[1741003579881,0.26217435,93368.0,93367.0,0.0495]
[1741003580090,0.11832169,93368.0,93367.0,0.0495]
[1741003580498,0.27897569,93368.0,93367.0,0.0495]
[1741003580732,0.02233071,93368.0,93367.0,0.0495]
[1741003580940,0.160661,93365.0,93354.0,0.160677]
[1741003581145,0.02233071,93368.0,93361.0,0.160665]
[1741003581327,0.00536631,93364.0,93353.0,0.0465]
[1741003581557,0.3410208,93368.0,93353.0,0.0465]
[1741003581752,0.214208,93367.0,93353.0,0.0465]
[1741003581992,0.160674,93357.0,93353.0,0.0465]
[1741003582198,0.08976,93366.0,93353.0,0.0465]
[1741003582348,0.00528303,93356.0,93355.0,0.214234]
[1741003582548,0.08976,93366.0,93360.0,0.160668]
[1741003582749,0.01680322,93363.0,93353.0,0.0465]
[1741003583134,0.160672,93358.0,93353.0,0.0465]
[1741003583337,0.00538909,93362.0,93353.0,0.0465]
[1741003583556,0.16604208,93357.0,93353.0,0.0465]
[1741003583759,0.214226,93360.0,93353.0,0.0465]
[1741003583964,0.00535088,93356.0,93353.0,0.0465]
[1741003584139,0.160678,93354.0,93353.0,0.0465]
[1741003584567,0.16604215,93354.0,93353.0,0.0465]
[1741003585314,0.00536415,93354.0,93338.0,0.205904]
[1741003585511,0.214246,93351.0,93338.0,0.0452]
[1741003585857,0.160704,93339.0,93338.0,0.0452]
[1741003586065,0.00535175,93339.0,93315.0,0.0827]
[1741003586284,0.00535175,93339.0,93324.0,0.0452]
[1741003586488,0.160728,93325.0,93324.0,0.0452]
[1741003587003,0.0053157,93325.0,93310.0,0.05006076]
[1741003587163,0.1660437,93325.0,93324.0,0.00039837]
[1741003587364,0.160728,93325.0,93324.0,0.00039837]
[1741003587593,0.16603231,93325.0,93324.0,0.00039837]
[1741003588585,0.00530431,93325.0,93324.0,0.16112837]
[1741003588785,0.08924,93338.0,93324.0,0.00039837]
[1741003588993,0.01680966,93325.0,93324.0,0.00039837]
[1741003589194,0.0053138,93325.0,93324.0,0.00039837]
[1741003589423,0.08924,93338.0,93324.0,0.00039837]
[1741003589598,0.01680872,93325.0,93324.0,0.21470437]
[1741003589785,0.08924,93338.0,93324.0,0.21470437]
[1741003589986,0.00533104,93337.0,93332.0,0.160715]
[1741003590191,0.214279,93336.0,93324.0,0.00039837]
[1741003590392,0.02212366,93335.0,93324.0,0.00073957]
[1741003590617,0.214284,93334.0,93324.0,0.00073957]
[1741003590822,0.160718,93331.0,93324.0,0.00073957]
[1741003591044,0.00531544,93330.0,93324.0,0.00073957]
[1741003591382,0.01680822,93335.0,93324.0,0.00073957]
[1741003591584,0.00531983,93329.0,93324.0,0.00073957]
[1741003591758,0.160717,93332.0,93324.0,0.00073957]
[1741003591905,0.00531983,93328.0,93324.0,0.00073957]
[1741003592162,0.01680822,93335.0,93324.0,0.00073957]
[1741003592699,0.16603473,93334.0,93324.0,0.16146757]
[1741003592897,0.00532173,93334.0,93324.0,0.00073957]
[1741003593098,0.00532173,93334.0,93333.0,0.160714]
[1741003593733,0.01680822,93335.0,93334.0,0.460713]
[1741003593950,0.3241,93356.0,93340.0,0.460702]
[1741003594133,0.0882,93374.0,93341.0,0.3]
[1741003594341,0.01082693,93383.0,93372.0,0.214196]
[1741003594868,0.01680117,93381.0,93371.0,0.263998]
[1741003595215,0.01680117,93381.0,93377.0,0.160638]
[1741003595394,0.01680117,93381.0,93371.0,0.0498]
[1741003595603,0.01692065,93381.0,93371.0,0.0498]
[1741003595804,0.160635,93380.0,93371.0,0.0498]
[1741003596000,0.00011948,93381.0,93371.0,0.0498]
[1741003596408,0.160647,93373.0,93371.0,0.0498]
[1741003596773,0.00011948,93381.0,93371.0,0.0498]
[1741003596774,0.160647,93372.0,93371.0,0.0498]
[1741003597138,0.160659,93366.0,93355.0,0.160675]
[1741003597346,0.3241,93380.0,93343.0,0.0479]
[1741003597555,0.31454085,93379.0,93343.0,0.0479]
[1741003597758,0.160695,93344.0,93343.0,0.0479]
[1741003598155,0.302172,93366.0,93343.0,0.0479]
[1741003598371,0.3241,93365.0,93343.0,0.0479]
[1741003598773,0.160695,93344.0,93343.0,0.0479]
[1741003599001,0.484795,93344.0,93343.0,0.00039837]
[1741003600266,0.50160004,93344.0,93343.0,0.00039837]
[1741003601059,0.34090504,93344.0,93343.0,0.00039837]
[1741003601517,0.50160004,93344.0,93343.0,0.00039837]
[1741003601856,0.90915189,93344.0,93343.0,0.00039837]
[1741003602066,0.81614089,93344.0,93343.0,0.00039837]
[1741003602491,0.81614089,93344.0,93343.0,3.7e-07]
[1741003605399,0.31454085,93343.0,93324.0,0.0003412]